[Event "Turkish Youth Championship 2024"]
[Site "Samsun"]
[Date "2024.05.19"]
[Round "2"]
[White "Cicek, Bilal Emre"]
[Black "Ozturk, Ahmet Emir"]
[Result "1-0"]
[ECO "A23"]
[WhiteElo "1873"]
[BlackElo "1581"]
[Annotator "NA RC"]
[PlyCount "63"]
[EventDate "2024.05.18"]
[EventType "swiss"]
[EventCountry "TUR"]
[SourceTitle "playchess.com"]
[Source "ChessBase"]
[SourceQuality "1"]
[TimeControl "5400+30"]

1. c4 {[%emt 0:01:00]} e5 {[%emt 0:01:00]} 2. g3 {[%emt 0:00:00]} Nf6 {[%emt 0:00:30]} 3. Bg2 {[%emt 0:00:00]} c6 {[%emt 0:00:30]} 4. d4 {[%emt 0:00:00]} exd4 {[%emt 0:02:30]} 5. Qxd4 {[%emt 0:00:00]} d5 {[%emt 0:00:30]} 6. cxd5 {[%emt 0:00:30]} Be6 {[%emt 0:02:30]} 7. Nc3 {[%emt 0:07:30]} cxd5 {[%emt 0:06:30]} 8. Bg5 {[%emt 0:03:30]} Nbd7 {[%emt 0:18:30]} 9. Nf3 {[%emt 0:06:30]} Bc5 {[%emt 0:04:30]} 10. Qd3 {[%emt 0:06:30]} a6 {[%emt 0:14:30]} 11. O-O {[%emt 0:01:30]} h6 {[%emt 0:01:30]} 12. Be3 {[%emt 0:01:30]} O-O {[%emt 0:00:30]} 13. Rac1 {[%emt 0:05:30]} Rc8 {[%emt 0:01:30]} 14. Bd4 {[%emt 0:04:30]} Qe7 {[%emt 0:01:30]} 15. Rfd1 {[%emt 0:07:30]} Rfd8 {[%emt 0:01:30]} 16. e3 {[%emt 0:04:30]} Bxd4 {[%emt 0:09:30]} 17. Nxd4 {[%emt 0:02:30]} Nc5 $14 {[%emt 0:01:30]} 18. Qb1 {[%emt 0:02:30]} Bg4 {[%emt 0:02:30]} 19. Rd2 {[%emt 0:02:30]} Nce4 {[%emt 0:01:30]} 20. Rdc2 {[%emt 0:04:30]} Nxc3 {[%emt 0:02:30]} 21. Rxc3 {[%emt 0:00:00]} Qd7 {[%emt 0:01:30]} 22. Rc5 {[%emt 0:05:00]} g6 {[%emt 0:04:30]} 23. b4 {[%emt 0:01:30]} b6 {[%emt 0:00:30]} 24. Rc6 {[%emt 0:00:30]} Kg7 {[%emt 0:04:39]} 25. Rxb6 {[%emt 0:01:30]} Bf5 {[%emt 0:00:07]} 26. Nxf5+ {[%emt 0:00:30]} Qxf5 {[%emt 0:00:11]} 27. Rxa6 {[%emt 0:02:30]} Ng4 {[%emt 0:01:59]} 28. Qb2+ {[%emt 0:00:30]} Kg8 {[%emt 0:00:16]} 29. Rac6 {[%emt 0:00:30]} Rb8 {[%emt 0:03:31]} 30. R6c2 {[%emt 0:09:30]} Ne5 {[%emt 0:01:02]} 31. Qd4 {[%emt 0:00:30]} Nd3 {[%emt 0:01:04]} 32. g4 {[%emt 0:01:30]} 1-0

[Event "Turkish Youth Championship 2024"]
[Site "Samsun"]
[Date "2024.05.19"]
[Round "2"]
[White "Hamurcu, Mehmet"]
[Black "Aygin, Kerem"]
[Result "1-0"]
[ECO "B22"]
[WhiteElo "1832"]
[BlackElo "1522"]
[Annotator "NA RC"]
[PlyCount "43"]
[EventDate "2024.05.18"]
[EventType "swiss"]
[EventCountry "TUR"]
[SourceTitle "playchess.com"]
[Source "ChessBase"]
[SourceQuality "1"]
[TimeControl "5400+30"]

1. e4 {[%emt 0:01:00]} c5 {[%emt 0:01:00]} 2. c3 {[%emt 0:00:00]} Nf6 {[%emt 0:00:30]} 3. e5 {[%emt 0:00:00]} Nd5 {[%emt 0:00:30]} 4. d4 {[%emt 0:00:00]} cxd4 {[%emt 0:00:30]} 5. Bc4 {[%emt 0:00:00]} Nb6 {[%emt 0:07:30]} 6. Bb3 {[%emt 0:00:00]} dxc3 {[%emt 0:08:30] B22: Sicilian: 2 c3.} 7. Nxc3 {[%emt 0:00:00]} a6 {[%emt 0:00:30]} 8. Nf3 {[%emt 0:00:30]} e6 {[%emt 0:01:30]} 9. Bf4 {[%emt 0:04:30]} Be7 {[%emt 0:18:30]} 10. O-O {[%emt 0:00:30]} Nc6 {[%emt 0:03:30]} 11. Qe2 {[%emt 0:02:30]} g5 {[%emt 0:16:30]} 12. Be3 {[%emt 0:07:30]} Na5 {[%emt 0:09:30]} 13. Ne4 {[%emt 0:04:30]} Nxb3 {[%emt 0:03:30]} 14. Bxg5 {[%emt 0:18:30]} Nd4 {[%emt 0:04:30]} 15. Nxd4 {[%emt 0:00:30]} Bxg5 {[%emt 0:01:30]} 16. Nd6+ {[%emt 0:00:00]} Kf8 {[%emt 0:04:33]} 17. Qh5 {[%emt 0:00:00]} Qe7 {[%emt 0:04:09]} 18. f4 {[%emt 0:00:30]} Bf6 {[%emt 0:00:31]} 19. Kh1 {[%emt 0:07:30]} Nd5 {[%emt 0:04:50]} 20. f5 $18 {[%emt 0:00:30]} (20. exf6 $2 {is the wrong capture.} Qxd6 21. f5 (21. Qh6+ $2 Ke8 $19) 21... h6 (21... Nxf6 22. Qh6+ Ke7 23. fxe6 $11) 22. fxe6 dxe6 $19) (20. Rac1 $142 h6 21. Nxc8) 20... Bxe5 {[%emt 0:06:54]} 21. fxe6 {[%emt 0:00:30]} f6 {[%emt 0:01:12]} 22. Qxe5 {[%emt 0:00:00]} 1-0

[Event "Turkish Youth Championship 2024"]
[Site "Samsun"]
[Date "2024.05.19"]
[Round "2"]
[White "Zengin, Ovgu"]
[Black "Cilek, Bora"]
[Result "0-1"]
[ECO "B73"]
[WhiteElo "1664"]
[BlackElo "2246"]
[Annotator "RC"]
[PlyCount "80"]
[EventDate "2024.05.18"]
[EventType "swiss"]
[EventCountry "TUR"]
[SourceTitle "playchess.com"]
[Source "ChessBase"]
[SourceQuality "1"]
[TimeControl "5400+30"]

1. e4 {[%emt 0:01:00]} c5 {[%emt 0:01:00]} 2. Nf3 {[%emt 0:00:30]} d6 {[%emt 0:00:00]} 3. d4 {[%emt 0:00:00]} cxd4 {[%emt 0:00:00]} 4. Nxd4 {[%emt 0:00:00]} Nf6 {[%emt 0:00:00]} 5. Nc3 {[%emt 0:00:00]} Nc6 {[%emt 0:01:00]} 6. Be2 {[%emt 0:05:00]} g6 {[%emt 0:00:00]} 7. O-O {[%emt 0:00:30]} Bg7 {[%emt 0:00:00]} 8. Be3 {[%emt 0:00:00]} O-O {[%emt 0:00:30]} 9. Qd2 {[%emt 0:02:00]} Bd7 {[%emt 0:01:30]} 10. f3 {[%emt 0:00:30]} Rc8 {[%emt 0:00:30]} 11. Rad1 {[%emt 0:02:30]} a6 {[%emt 0:04:30]} 12. Nxc6 {[%emt 0:01:30]} Bxc6 {[%emt 0:09:30]} 13. Qe1 {[%emt 0:02:30]} Nd7 {[%emt 0:01:30]} 14. Qf2 {[%emt 0:04:30]} Bxc3 {[%emt 0:18:30]} 15. bxc3 {[%emt 0:00:30]} Qa5 {[%emt 0:01:30]} 16. Bd3 {[%emt 0:08:30]} Bb5 {[%emt 0:15:30]} 17. Qh4 {[%emt 0:00:30]} Rfe8 {[%emt 0:01:30]} 18. Qh6 {[%emt 0:02:30]} Bxd3 {[%emt 0:02:30]} 19. Rxd3 {[%emt 0:00:30]} Ne5 {[%emt 0:01:30]} 20. Bd4 {[%emt 0:00:00]} f6 {[%emt 0:00:30]} 21. Bxe5 {[%emt 0:02:00]} Qxe5 {[%emt 0:01:30]} 22. Qe3 {[%emt 0:01:30]} Rc4 {[%emt 0:00:30]} 23. Rb1 {[%emt 0:03:30]} b5 {[%emt 0:00:30]} 24. Rb3 {[%emt 0:01:30]} Rec8 {[%emt 0:00:30]} 25. Rd5 {[%emt 0:00:30]} Qe6 {[%emt 0:00:00]} 26. g4 {[%emt 0:04:30]} Kg7 {[%emt 0:02:00]} 27. Kf2 {[%emt 0:01:30]} R8c5 {[%emt 0:00:30]} 28. Rxc5 {[%emt 0:03:30]} Rxc5 {[%emt 0:00:30]} 29. a3 {[%emt 0:01:30]} Qe5 {[%emt 0:00:30]} 30. f4 {[%emt 0:00:30]} Qe6 {[%emt 0:00:30]} 31. h3 {[%emt 0:00:30]} h5 {[%emt 0:02:30]} 32. Kf3 {[%emt 0:02:30]} g5 {[%emt 0:01:30]} 33. a4 {[%emt 0:14:30]} hxg4+ {[%emt 0:02:30]} 34. hxg4 {[%emt 0:00:30]} gxf4 {[%emt 0:00:30]} 35. Qxf4 {[%emt 0:00:30]} bxa4 {[%emt 0:00:00]} 36. Ra3 {[%emt 0:00:00]} Qc4 {[%emt 0:00:00]} 37. Qe3 {[%emt 0:02:00]} Qf1+ {[%emt 0:00:30]} 38. Qf2 {[%emt 0:00:30]} Qc1 {[%emt 0:00:30]} 39. Ra2 {[%emt 0:02:30]} Rxc3+ {[%emt 0:00:30]} 40. Kg2 {[%emt 0:00:00]} a3 {[%emt 0:00:30]} 0-1

[Event "Turkish Youth Championship 2024"]
[Site "Samsun"]
[Date "2024.05.19"]
[Round "2"]
[White "Latifoglu, Ali Emir"]
[Black "Atis, Hasan"]
[Result "0-1"]
[ECO "B40"]
[WhiteElo "1641"]
[BlackElo "2014"]
[Annotator "RC"]
[PlyCount "64"]
[EventDate "2024.05.18"]
[EventType "swiss"]
[EventCountry "TUR"]
[SourceTitle "playchess.com"]
[Source "ChessBase"]
[SourceQuality "1"]
[TimeControl "5400+30"]

1. e4 {[%emt 0:01:00]} c5 {[%emt 0:01:00]} 2. Nf3 {[%emt 0:00:30]} e6 {[%emt 0:00:30]} 3. g3 {[%emt 0:00:00]} Nc6 {[%emt 0:00:30]} 4. Bg2 {[%emt 0:00:00]} Nf6 {[%emt 0:00:30]} 5. Nc3 {[%emt 0:00:00]} Be7 {[%emt 0:01:30]} 6. O-O {[%emt 0:00:00]} e5 {[%emt 0:00:30]} 7. Nd5 {[%emt 0:01:30]} d6 {[%emt 0:00:30]} 8. Nxf6+ {[%emt 0:01:30]} Bxf6 {[%emt 0:01:30]} 9. c4 {[%emt 0:00:30]} O-O {[%emt 0:00:00]} 10. d3 {[%emt 0:00:00]} Be7 {[%emt 0:00:00]} 11. Bd2 {[%emt 0:01:00]} f5 {[%emt 0:00:30]} 12. a3 {[%emt 0:00:30]} Be6 {[%emt 0:04:30]} 13. Qc1 {[%emt 0:01:30]} h6 {[%emt 0:07:30]} 14. b4 {[%emt 0:04:30]} fxe4 {[%emt 0:19:30]} 15. dxe4 {[%emt 0:00:30]} b6 {[%emt 0:00:00]} 16. b5 {[%emt 0:00:30]} Nd4 {[%emt 0:02:00]} 17. Nxd4 {[%emt 0:02:30]} cxd4 {[%emt 0:00:00]} 18. Re1 {[%emt 0:00:30]} Rc8 {[%emt 0:00:00]} 19. Bf1 {[%emt 0:00:00]} Qe8 {[%emt 0:00:00]} 20. f4 {[%emt 0:03:00]} Qf7 {[%emt 0:05:00]} 21. f5 {[%emt 0:00:30]} Bxc4 {[%emt 0:01:30]} 22. Qb2 {[%emt 0:00:00]} d5 {[%emt 0:14:30]} 23. Bg2 {[%emt 0:01:00]} Bd3 {[%emt 0:01:30]} 24. Qb3 {[%emt 0:01:30]} dxe4 {[%emt 0:02:30]} 25. Qxf7+ {[%emt 0:00:00]} Kxf7 {[%emt 0:00:30]} 26. Bxe4 {[%emt 0:00:00]} Bxb5 {[%emt 0:02:30]} 27. Bd5+ {[%emt 0:01:30]} Kf6 {[%emt 0:00:30]} 28. Be6 {[%emt 0:00:00]} Rc2 {[%emt 0:01:30]} 29. Bb4 {[%emt 0:00:00]} Bc5 {[%emt 0:00:30]} 30. Bxc5 {[%emt 0:00:30]} bxc5 {[%emt 0:01:30]} 31. Rac1 {[%emt 0:00:30]} Bd3 {[%emt 0:00:30]} 32. g4 {[%emt 0:00:30]} e4 {[%emt 0:00:30]} 0-1

[Event "Turkish Youth Championship 2024"]
[Site "Samsun"]
[Date "2024.05.19"]
[Round "2"]
[White "Ergin, Hasan Kaan"]
[Black "Turgut, Hakan"]
[Result "1-0"]
[ECO "C88"]
[WhiteElo "1632"]
[BlackElo "1954"]
[Annotator "RC"]
[PlyCount "86"]
[EventDate "2024.05.18"]
[EventType "swiss"]
[EventCountry "TUR"]
[SourceTitle "playchess.com"]
[Source "ChessBase"]
[SourceQuality "1"]
[TimeControl "5400+30"]

1. e4 {[%emt 0:01:00]} e5 {[%emt 0:01:00]} 2. Nf3 {[%emt 0:00:30]} Nc6 {[%emt 0:00:00]} 3. Bb5 {[%emt 0:00:00]} a6 {[%emt 0:00:00]} 4. Ba4 {[%emt 0:00:00]} Nf6 {[%emt 0:00:30]} 5. O-O {[%emt 0:00:00]} Be7 {[%emt 0:00:30]} 6. Re1 {[%emt 0:00:00]} b5 {[%emt 0:00:30]} 7. Bb3 {[%emt 0:00:00]} O-O {[%emt 0:00:00]} 8. h3 {[%emt 0:00:00]} Bb7 {[%emt 0:00:00]} 9. d3 {[%emt 0:02:30]} d6 {[%emt 0:01:30]} 10. a4 {[%emt 0:04:30]} Na5 {[%emt 0:00:30]} 11. Ba2 {[%emt 0:00:30]} bxa4 {[%emt 0:02:30]} 12. Bd2 {[%emt 0:07:30]} c5 {[%emt 0:05:30]} 13. Bxa5 {[%emt 0:01:30]} Qxa5 {[%emt 0:00:30]} 14. Bb3 {[%emt 0:01:30]} Qc7 {[%emt 0:01:30]} 15. Rxa4 {[%emt 0:02:30]} Nd7 {[%emt 0:03:30]} 16. Nfd2 {[%emt 0:04:30]} Nb6 {[%emt 0:06:30]} 17. Ra1 {[%emt 0:02:30]} Kh8 {[%emt 0:08:30]} 18. Nc4 {[%emt 0:05:30]} f5 {[%emt 0:04:30]} 19. Nc3 {[%emt 0:02:30]} Bh4 {[%emt 0:04:30]} 20. Qh5 {[%emt 0:06:30]} Nxc4 {[%emt 0:06:30]} 21. Qxh4 {[%emt 0:12:30]} Nb6 {[%emt 0:00:30]} 22. Be6 {[%emt 0:07:30]} g6 {[%emt 0:05:30]} 23. Qg5 {[%emt 0:14:30]} Rae8 {[%emt 0:08:30]} 24. Qh6 {[%emt 0:05:54]} Qe7 {[%emt 0:06:30]} 25. Nd5 {[%emt 0:03:05]} Qxe6 {[%emt 0:00:30]} 26. Nxb6 {[%emt 0:00:11]} Qe7 {[%emt 0:14:35]} 27. Nd5 {[%emt 0:03:41]} Bxd5 {[%emt 0:01:11]} 28. exd5 {[%emt 0:00:01]} f4 {[%emt 0:03:10]} 29. Rxa6 {[%emt 0:08:34]} Rf5 {[%emt 0:00:08]} 30. g4 {[%emt 0:00:08]} fxg3 {[%emt 0:00:19]} 31. fxg3 {[%emt 0:00:37]} Qf7 {[%emt 0:03:21]} 32. Raa1 {[%emt 0:02:46]} Rf8 {[%emt 0:02:00]} 33. Qd2 {[%emt 0:02:07]} Rf2 {[%emt 0:00:16]} 34. Re2 {[%emt 0:00:28]} Rf3 {[%emt 0:01:17]} 35. Kh2 {[%emt 0:01:20]} Qxd5 {[%emt 0:02:10]} 36. c4 {[%emt 0:01:04]} Qd4 {[%emt 0:01:32]} 37. Kg2 {[%emt 0:00:33]} Rxd3 {[%emt 0:01:13]} 38. Qc2 {[%emt 0:00:29]} e4 {[%emt 0:00:47]} 39. Rf1 {[%emt 0:00:26]} Rff3 {[%emt 0:01:18]} 40. Qa4 {[%emt 0:00:33]} Rxg3+ {[%emt 0:01:01]} 41. Kh1 {[%emt 0:00:04]} Rxh3+ {[%emt 0:00:11]} 42. Rh2 {[%emt 0:00:07]} Rxh2+ {[%emt 0:00:09]} 43. Kxh2 {[%emt 0:00:02]} Qxb2+ {[%emt 0:00:01]} 1-0

[Event "Turkish Youth Championship 2024"]
[Site "Samsun"]
[Date "2024.05.19"]
[Round "2"]
[White "Konyar, Enver"]
[Black "Yilmaz, Kerem Tuna"]
[Result "1-0"]
[ECO "A01"]
[WhiteElo "1606"]
[BlackElo "2039"]
[Annotator "RC"]
[PlyCount "143"]
[EventDate "2024.05.18"]
[EventType "swiss"]
[EventCountry "TUR"]
[SourceTitle "playchess.com"]
[Source "ChessBase"]
[SourceQuality "1"]
[TimeControl "5400+30"]

1. b3 {[%emt 0:01:00]} e5 {[%emt 0:01:00]} 2. Bb2 {[%emt 0:00:00]} Nc6 {[%emt 0:00:30]} 3. c4 {[%emt 0:00:00]} Nf6 {[%emt 0:00:30]} 4. Nf3 {[%emt 0:00:30]} d6 {[%emt 0:00:30]} 5. e3 {[%emt 0:00:30]} Bf5 {[%emt 0:01:30]} 6. a3 {[%emt 0:00:30]} e4 {[%emt 0:03:30]} 7. Nd4 {[%emt 0:01:30]} Nxd4 {[%emt 0:01:30]} 8. Bxd4 {[%emt 0:00:30]} Be7 {[%emt 0:02:30]} 9. Bb2 {[%emt 0:01:30]} O-O {[%emt 0:02:30]} 10. d4 {[%emt 0:02:30]} exd3 {[%emt 0:00:30]} 11. Bxd3 {[%emt 0:00:30]} Bxd3 {[%emt 0:01:30]} 12. Qxd3 {[%emt 0:00:30]} d5 {[%emt 0:00:30]} 13. O-O {[%emt 0:00:30]} dxc4 {[%emt 0:00:30]} 14. Qxc4 {[%emt 0:00:00]} Qd5 {[%emt 0:04:30]} 15. Qxd5 {[%emt 0:20:00]} Nxd5 {[%emt 0:00:00]} 16. Nd2 {[%emt 0:00:00]} Rfd8 {[%emt 0:04:00]} 17. Rfd1 {[%emt 0:02:00]} c5 {[%emt 0:09:30]} 18. h3 {[%emt 0:03:30]} Rac8 {[%emt 0:07:30]} 19. Rac1 {[%emt 0:03:30]} b5 {[%emt 0:02:30]} 20. Ne4 {[%emt 0:03:30]} f5 {[%emt 0:03:30]} 21. Ng3 {[%emt 0:05:30]} g6 {[%emt 0:02:30]} 22. e4 {[%emt 0:04:30]} fxe4 {[%emt 0:01:30]} 23. Nxe4 {[%emt 0:00:30]} Nf4 {[%emt 0:00:30]} 24. Rxd8+ {[%emt 0:04:30]} Rxd8 {[%emt 0:00:30]} 25. Rc2 {[%emt 0:00:30]} Rd1+ {[%emt 0:21:30]} 26. Kh2 {[%emt 0:00:30]} Nd3 {[%emt 0:03:30]} 27. Bf6 {[%emt 0:04:30]} Bf8 {[%emt 0:02:30]} 28. Nc3 {[%emt 0:01:30]} Rf1 {[%emt 0:00:30]} 29. Nxb5 {[%emt 0:01:30]} Nxf2 {[%emt 0:00:30]} 30. Bh4 {[%emt 0:03:30]} Ne4 {[%emt 0:02:30]} 31. Re2 {[%emt 0:02:30]} a6 {[%emt 0:00:30]} 32. Rxe4 {[%emt 0:01:30]} axb5 {[%emt 0:00:30]} 33. Be7 {[%emt 0:01:30]} Ra1 {[%emt 0:03:13]} 34. Bxf8 {[%emt 0:03:30]} Kxf8 {[%emt 0:00:01]} 35. a4 {[%emt 0:00:00]} Rb1 {[%emt 0:00:53]} 36. Re3 {[%emt 0:02:00]} c4 {[%emt 0:03:53]} 37. axb5 {[%emt 0:03:30]} Rxb3 {[%emt 0:00:10]} 38. Re4 {[%emt 0:00:30]} c3 {[%emt 0:00:06]} 39. Rc4 {[%emt 0:00:00]} Ke7 {[%emt 0:00:24]} 40. b6 {[%emt 0:00:00]} Kd6 {[%emt 0:00:12]} 41. b7 {[%emt 0:00:30]} Kd5 {[%emt 0:01:19]} 42. Rxc3 {[%emt 0:00:30]} Rxb7 {[%emt 0:00:06]} 43. Re3 {[%emt 0:01:30]} Kd4 {[%emt 0:00:01]} 44. Re8 {[%emt 0:00:30]} h5 {[%emt 0:00:17]} 45. Re6 {[%emt 0:00:30]} g5 {[%emt 0:00:05]} 46. Ra6 {[%emt 0:01:30]} Re7 {[%emt 0:00:49]} 47. Ra4+ {[%emt 0:00:30]} Ke3 {[%emt 0:00:06]} 48. Ra5 {[%emt 0:00:30]} Kf4 {[%emt 0:02:01]} 49. Ra1 {[%emt 0:02:30]} Re5 {[%emt 0:00:59]} 50. Rf1+ {[%emt 0:01:30]} Ke3 {[%emt 0:00:37]} 51. Re1+ {[%emt 0:00:00]} Kd4 {[%emt 0:00:00]} 52. Rd1+ {[%emt 0:00:00]} Kc4 {[%emt 0:00:00]} 53. Kg3 {[%emt 0:00:30]} Rd5 {[%emt 0:00:10]} 54. Rxd5 {[%emt 0:04:17]} Kxd5 {[%emt 0:00:47]} 55. h4 {[%emt 0:00:07]} g4 {[%emt 0:02:01]} 56. Kf4 {[%emt 0:00:20]} Kd4 {[%emt 0:00:03]} 57. Kg5 {[%emt 0:01:02]} Ke3 {[%emt 0:00:19]} 58. Kxh5 {[%emt 0:00:43]} Kf4 {[%emt 0:00:05]} 59. Kg6 {[%emt 0:00:00]} g3 {[%emt 0:00:12]} 60. h5 {[%emt 0:00:33]} Ke3 {[%emt 0:00:03]} 61. h6 {[%emt 0:00:29]} Kf2 {[%emt 0:00:30]} 62. h7 {[%emt 0:00:00]} Kxg2 {[%emt 0:00:04]} 63. h8=Q {[%emt 0:00:12]} Kg1 {[%emt 0:00:00]} 64. Kf5 {[%emt 0:00:54]} g2 {[%emt 0:00:00]} 65. Kf4 {[%emt 0:00:13]} Kf1 {[%emt 0:00:00]} 66. Qa1+ {[%emt 0:00:00]} Kf2 {[%emt 0:00:05]} 67. Qb2+ {[%emt 0:00:30]} Kf1 {[%emt 0:00:04]} 68. Kf3 {[%emt 0:00:10]} g1=N+ {[%emt 0:00:06]} 69. Ke3 {[%emt 0:00:30]} Nh3 {[%emt 0:00:02]} 70. Qe2+ {[%emt 0:00:30]} Kg1 {[%emt 0:00:17]} 71. Kf3 {[%emt 0:00:30]} Ng5+ {[%emt 0:00:30]} 72. Kg3 {[%emt 0:00:30]} 1-0

[Event "Turkish Youth Championship 2024"]
[Site "Samsun"]
[Date "2024.05.19"]
[Round "2"]
[White "Cakir, Kerem Cagri"]
[Black "Zerey, Demhat"]
[Result "0-1"]
[ECO "C44"]
[WhiteElo "1585"]
[BlackElo "1986"]
[Annotator "RC"]
[PlyCount "66"]
[EventDate "2024.05.18"]
[EventType "swiss"]
[EventCountry "TUR"]
[SourceTitle "playchess.com"]
[Source "ChessBase"]
[SourceQuality "1"]
[TimeControl "5400+30"]

1. e4 {[%emt 0:01:00]} e5 {[%emt 0:01:00]} 2. Nf3 {[%emt 0:00:30]} Nc6 {[%emt 0:00:30]} 3. c3 {[%emt 0:00:00]} Nf6 {[%emt 0:00:00]} 4. d4 {[%emt 0:00:00]} Nxe4 {[%emt 0:00:00]} 5. d5 {[%emt 0:00:00]} Bc5 {[%emt 0:00:00]} 6. dxc6 {[%emt 0:02:00]} Bxf2+ {[%emt 0:02:00]} 7. Ke2 {[%emt 0:00:30]} Bb6 {[%emt 0:00:00]} 8. Be3 {[%emt 0:04:30]} O-O {[%emt 0:00:00]} 9. Nbd2 {[%emt 0:07:30]} Nd6 {[%emt 0:00:30]} 10. Bxb6 {[%emt 0:04:30]} axb6 {[%emt 0:00:00]} 11. cxd7 {[%emt 0:02:30]} Bxd7 {[%emt 0:00:00]} 12. Qc2 {[%emt 0:00:30]} Re8 {[%emt 0:04:30]} 13. Kd1 {[%emt 0:01:30]} e4 {[%emt 0:05:30]} 14. Nd4 {[%emt 0:04:30]} c5 {[%emt 0:01:30]} 15. Ne2 {[%emt 0:15:30]} e3 {[%emt 0:04:30]} 16. Nf3 {[%emt 0:07:30]} Bf5 {[%emt 0:00:30]} 17. Qb3 {[%emt 0:02:30]} Ne4+ {[%emt 0:07:30]} 18. Ke1 {[%emt 0:01:30]} Bg4 {[%emt 0:05:30]} 19. Rd1 {[%emt 0:14:30]} Qf6 {[%emt 0:00:30]} 20. Rg1 {[%emt 0:01:30]} Bxf3 {[%emt 0:05:30]} 21. gxf3 {[%emt 0:00:30]} Nd2 {[%emt 0:05:30]} 22. Rxd2 {[%emt 0:01:30]} exd2+ {[%emt 0:00:00]} 23. Kd1 {[%emt 0:01:30]} Qxf3 {[%emt 0:01:00]} 24. Qc4 {[%emt 0:06:30]} Qf2 {[%emt 0:00:30]} 25. Bg2 {[%emt 0:03:38]} Rxe2 {[%emt 0:01:30]} 26. Qxe2 {[%emt 0:00:30]} Qxg1+ {[%emt 0:00:00]} 27. Kxd2 {[%emt 0:00:40]} Qb1 {[%emt 0:00:00]} 28. Be4 {[%emt 0:04:21]} Qxb2+ {[%emt 0:00:00]} 29. Bc2 {[%emt 0:00:05]} Qxc2+ {[%emt 0:00:00]} 30. Kxc2 {[%emt 0:00:46]} Rxa2+ {[%emt 0:00:30]} 31. Kd1 {[%emt 0:00:12]} Rxe2 {[%emt 0:00:30]} 32. Kxe2 {[%emt 0:00:00]} f5 {[%emt 0:00:00]} 33. Kf3 {[%emt 0:00:11]} b5 {[%emt 0:00:00]} 0-1

[Event "Turkish Youth Championship 2024"]
[Site "Samsun"]
[Date "2024.05.19"]
[Round "2"]
[White "Balci, Ahmet Hakan"]
[Black "Tirpan, Ceren"]
[Result "0-1"]
[ECO "B57"]
[WhiteElo "1563"]
[BlackElo "2004"]
[Annotator "RC"]
[PlyCount "102"]
[EventDate "2024.05.18"]
[EventType "swiss"]
[EventCountry "TUR"]
[SourceTitle "playchess.com"]
[Source "ChessBase"]
[SourceQuality "1"]
[TimeControl "5400+30"]

1. e4 {[%emt 0:01:00]} c5 {[%emt 0:01:00]} 2. Nf3 {[%emt 0:00:30]} Nc6 {[%emt 0:00:30]} 3. d4 {[%emt 0:00:30]} cxd4 {[%emt 0:00:30]} 4. Nxd4 {[%emt 0:00:00]} Qb6 {[%emt 0:00:00]} 5. Nxc6 {[%emt 0:00:00]} bxc6 {[%emt 0:00:00]} 6. Nc3 {[%emt 0:02:30]} d6 {[%emt 0:00:00]} 7. Bc4 {[%emt 0:00:30]} Nf6 {[%emt 0:00:00]} 8. O-O {[%emt 0:00:30]} g6 {[%emt 0:01:30]} 9. Be3 {[%emt 0:01:30]} Qc7 {[%emt 0:02:30]} 10. h3 {[%emt 0:02:30]} Bg7 {[%emt 0:04:30]} 11. f4 {[%emt 0:03:30]} O-O {[%emt 0:10:30]} 12. Qf3 {[%emt 0:02:30]} Rb8 {[%emt 0:13:30]} 13. Rab1 {[%emt 0:01:30]} Nd7 {[%emt 0:08:30]} 14. Qf2 {[%emt 0:01:30]} Rb4 {[%emt 0:06:30]} 15. Bd3 {[%emt 0:01:30]} Qb8 {[%emt 0:05:30]} 16. Nd1 {[%emt 0:02:30]} c5 {[%emt 0:08:30]} 17. c3 {[%emt 0:00:30]} Rb7 {[%emt 0:02:30]} 18. b4 {[%emt 0:04:30]} cxb4 {[%emt 0:05:30]} 19. Ba6 {[%emt 0:01:30]} Rc7 {[%emt 0:00:30]} 20. Rxb4 {[%emt 0:00:00]} Qa8 {[%emt 0:00:00]} 21. Bxc8 {[%emt 0:02:00]} Rfxc8 {[%emt 0:00:00]} 22. Bd4 {[%emt 0:00:30]} a5 {[%emt 0:07:30]} 23. Rb2 {[%emt 0:00:30]} Nc5 {[%emt 0:04:10]} 24. Bxc5 {[%emt 0:00:30]} Rxc5 {[%emt 0:00:07]} 25. e5 {[%emt 0:00:30]} dxe5 {[%emt 0:01:52]} 26. fxe5 {[%emt 0:00:30]} Qd5 {[%emt 0:00:14]} 27. Re2 {[%emt 0:01:30]} Qe6 {[%emt 0:00:06]} 28. Kh1 {[%emt 0:03:30]} Rxe5 {[%emt 0:00:26]} 29. Rfe1 {[%emt 0:01:30]} Rxe2 {[%emt 0:00:08]} 30. Rxe2 {[%emt 0:00:30]} Qf6 {[%emt 0:02:13]} 31. Qe1 {[%emt 0:00:30]} e6 {[%emt 0:00:06]} 32. Re3 {[%emt 0:00:30]} Rc4 {[%emt 0:01:11]} 33. Nf2 {[%emt 0:01:30]} Qh4 {[%emt 0:05:23]} 34. Kh2 {[%emt 0:08:30]} Qf4+ {[%emt 0:02:44]} 35. g3 {[%emt 0:00:30]} Qc7 {[%emt 0:00:07]} 36. Ne4 {[%emt 0:02:30]} h6 {[%emt 0:00:07]} 37. Rd3 {[%emt 0:03:30]} Kh7 {[%emt 0:01:17]} 38. h4 {[%emt 0:03:30]} f5 {[%emt 0:00:35]} 39. Nf6+ {[%emt 0:01:30]} Bxf6 {[%emt 0:01:23]} 40. Qxe6 {[%emt 0:00:00]} Rxh4+ {[%emt 0:02:32]} 41. Kg1 {[%emt 0:05:00]} Qa7+ {[%emt 0:00:08]} 42. Kg2 {[%emt 0:01:30]} Qb7+ {[%emt 0:00:11]} 43. Rf3 {[%emt 0:00:30]} Qb2+ {[%emt 0:00:07]} 44. Kg1 {[%emt 0:00:30]} Qh2+ {[%emt 0:00:07]} 45. Kf1 {[%emt 0:00:30]} Qh1+ {[%emt 0:00:10]} 46. Ke2 {[%emt 0:00:00]} Re4+ {[%emt 0:00:17]} 47. Qxe4 {[%emt 0:01:00]} fxe4 {[%emt 0:00:30]} 48. Rxf6 {[%emt 0:00:00]} Qg2+ {[%emt 0:00:07]} 49. Ke3 {[%emt 0:00:00]} Qxg3+ {[%emt 0:00:24]} 50. Kxe4 {[%emt 0:00:00]} Qxc3 {[%emt 0:00:00]} 51. Rf3 {[%emt 0:00:00]} Qc4+ {[%emt 0:00:00]} 0-1